fUSD/lending_fUSD_20250809
["ID","MTS","AMOUNT","RATE_DAILY","PERIOD"]
[378056028,1754706638391,-501.31311314,0.00018973,2]
[378056030,1754706638400,-180.20800522,0.00018978,2]
[378056031,1754706638410,-569.41882885,0.00018999,2]
[378056033,1754706638420,-500.0,0.00018999,2]
[378056035,1754706638430,-500.0,0.00018999,2]
[378056037,1754706638440,-500.0,0.00018999,2]
[378056038,1754706638449,-167.73637361,0.00018999,2]
[378056039,1754706638460,-500.0,0.00018999,2]
[378056040,1754706638470,-500.0,0.00018999,2]
[378056041,1754706638479,-500.0,0.00018999,2]
[378056042,1754706638488,-500.0,0.00018999,2]
[378056043,1754706638498,-500.0,0.00018999,2]
[378056044,1754706638509,-500.0,0.00018999,2]
[378056046,1754706638519,-500.0,0.00018999,2]
[378056048,1754706638528,-355.86318219,0.00018999,2]
[378056049,1754706638538,-500.0,0.00018999,2]
[378056050,1754706638547,-598.77392286,0.00018999,2]
[378056051,1754706638556,-500.0,0.00018999,2]
[378056052,1754706638566,-500.0,0.00018999,2]
[378056053,1754706638575,-500.0,0.00018999,2]
[378056054,1754706638584,-500.0,0.00018999,2]
[378056055,1754706638593,-500.0,0.00018999,2]
[378056056,1754706638602,-379.32742262,0.00018999,2]
[378056057,1754706638612,-500.0,0.00018999,2]
[378056058,1754706638622,-500.0,0.00018999,2]
[378056059,1754706638631,-500.0,0.00018999,2]
[378056060,1754706638640,-350.0,0.00018999,2]
[378056061,1754706638650,-500.0,0.00018999,2]
[378056062,1754706638659,-500.0,0.00018999,2]
[378056063,1754706638670,-500.0,0.00018999,2]
[378056064,1754706638680,-500.0,0.00018999,2]
[378056065,1754706638690,-500.0,0.00018999,2]
[378056066,1754706638699,-500.0,0.00018999,2]
[378056067,1754706638708,-500.0,0.00018999,2]
[378056068,1754706638717,-500.0,0.00018999,2]
[378056069,1754706638727,-500.0,0.00018999,2]
[378056070,1754706638736,-500.0,0.00018999,2]
[378056071,1754706638746,-500.0,0.00018999,2]
[378056072,1754706638755,-500.0,0.00018999,2]
[378056073,1754706638764,-500.0,0.00018999,2]
[378056074,1754706638775,-500.0,0.00018999,2]
[378056075,1754706638784,-500.0,0.00018999,2]
[378056076,1754706638793,-500.0,0.00018999,2]
[378056077,1754706638803,-500.0,0.00018999,2]
[378056078,1754706638812,-500.0,0.00018999,2]
[378056079,1754706638822,-500.0,0.00018999,2]
[378056080,1754706638831,-500.0,0.00018999,2]
[378056081,1754706638841,-500.0,0.00018999,2]
[378056082,1754706638850,-500.0,0.00018999,2]
[378056083,1754706638860,-500.0,0.00018999,2]
[378056084,1754706638871,-500.0,0.00018999,2]
[378056085,1754706638881,-500.0,0.00018999,2]
[378056086,1754706638893,-500.0,0.00018999,2]
[378056087,1754706638902,-500.0,0.00018999,2]
[378056088,1754706638912,-500.0,0.00018999,2]
[378056089,1754706638922,-500.0,0.00018999,2]
[378056090,1754706638932,-500.0,0.00018999,2]
[378056091,1754706638941,-500.0,0.00018999,2]
[378056092,1754706638950,-500.0,0.00018999,2]
[378056093,1754706638961,-500.0,0.00018999,2]
[378056094,1754706638970,-500.0,0.00018999,2]
[378056095,1754706638982,-500.0,0.00018999,2]
[378056096,1754706638992,-500.0,0.00018999,2]
[378056097,1754706639003,-500.0,0.00018999,2]
[378056098,1754706639013,-500.0,0.00018999,2]
[378056099,1754706639023,-500.0,0.00018999,2]
[378056100,1754706639032,-500.0,0.00018999,2]
[378056101,1754706639042,-500.0,0.00018999,2]
[378056102,1754706639052,-500.0,0.00018999,2]
[378056103,1754706639062,-500.0,0.00018999,2]
[378056104,1754706639071,-500.0,0.00018999,2]
[378056105,1754706639080,-500.0,0.00018999,2]
[378056106,1754706639090,-500.0,0.00018999,2]
[378056107,1754706639100,-500.0,0.00018999,2]
[378056108,1754706639109,-500.0,0.00018999,2]
[378056109,1754706639119,-500.0,0.00018999,2]
[378056110,1754706639135,-500.0,0.00018999,2]
[378056111,1754706639144,-476.86514493,0.00018999,2]
[378056112,1754706639154,-500.0,0.00018999,2]
[378056113,1754706639163,-500.0,0.00018999,2]
[378056114,1754706639172,-500.0,0.00018999,2]
[378056115,1754706639181,-500.0,0.00018999,2]
[378056116,1754706639190,-500.0,0.00018999,2]
[378056117,1754706639199,-500.0,0.00018999,2]
[378056118,1754706639208,-500.0,0.00018999,2]
[378056119,1754706639217,-500.0,0.00018999,2]
[378056120,1754706639226,-500.0,0.00018999,2]
[378056121,1754706639235,-500.0,0.00018999,2]
[378056122,1754706639245,-500.0,0.00018999,2]
[378056123,1754706639254,-500.0,0.00018999,2]
[378056124,1754706639263,-500.0,0.00018999,2]
[378056125,1754706639272,-500.0,0.00018999,2]
[378056126,1754706639458,-500.0,0.00018999,2]
[378056127,1754706639469,-500.0,0.00018999,2]
[378056128,1754706639478,-500.0,0.00018999,2]
[378056129,1754706639487,-500.0,0.00018999,2]
[378056130,1754706639497,-500.0,0.00018999,2]
[378056131,1754706639506,-500.0,0.00018999,2]
[378056132,1754706639516,-500.0,0.00018999,2]
[378056133,1754706639526,-500.0,0.00018999,2]
[378056134,1754706639537,-500.0,0.00018999,2]
[378056135,1754706639547,-500.0,0.00018999,2]
[378056136,1754706639557,-500.0,0.00018999,2]
[378056137,1754706639566,-250.0,0.00018999,2]
[378056138,1754706639575,-500.0,0.00018999,2]
[378056139,1754706639585,-500.0,0.00018999,2]
[378056140,1754706639594,-500.0,0.00018999,2]
[378056141,1754706639603,-500.0,0.00018999,2]
[378056142,1754706639613,-300.0,0.00018999,2]
[378056143,1754706639622,-300.0,0.00018999,2]
[378056144,1754706639631,-300.0,0.00018999,2]
[378056145,1754706639640,-310.47965891,0.00019,2]
[378056146,1754706639653,-1713.94039747,0.00019,2]
[378056147,1754706639662,-2610.21596141,0.00019,2]
[378056148,1754706639672,-71475.84364112,0.00019,2]
[378056149,1754706639683,-16104.0,0.00019,2]
[378056150,1754706639694,-10290.0,0.00019,2]
[378056151,1754706639705,-23500.0,0.00019,2]
[378056152,1754706640261,-366836.91732558,0.00019,2]
[378056153,1754706640271,-134499.53321533,0.00019,2]
[378056154,1754706640315,-6116.99755119,0.00019,2]
[378056155,1754706640326,-271.9976,0.00019,2]
[378056156,1754706640340,-2412.17084553,0.00019,2]
[378056176,1754706643366,-2016.2,0.00019,2]
[378056206,1754706646128,-271.43574751,0.00019,2]
[378056207,1754706646185,-1983.26450956,0.00019,2]
[378056208,1754706646197,-594.76790719,0.00019,2]
[378056209,1754706646297,-9646.42142873,0.00019,2]
[378056210,1754706646407,-4818.0196,0.00019,2]
[378056212,1754707205622,157.07,0.00013699,2]
[378056228,1754707722511,385.02,0.00015068,2]
[378056229,1754707722720,385.02,0.00016744,2]
[378056238,1754707832304,-385.02,0.00018419,2]
[378056239,1754707832313,-62.39476434,0.0001852,2]
[378056241,1754707832368,-187.60523566,0.0001852,2]
[378056242,1754707832377,-151.0,0.00018713,2]
[378056243,1754707832386,-1859.00737,0.0001881,2]
[378056244,1754707832395,-474.87311375,0.00018829,2]
[378056245,1754707832405,-1200.0,0.00018899,2]
[378056246,1754707832414,-300.0,0.00018899,2]
[378056247,1754707832423,-5926.46452224,0.000189,2]
[378056248,1754707832432,-548.39178728,0.000189,2]
[378056249,1754707832444,-2324.2061673,0.000189,2]
[378056250,1754707832455,-151.0,0.00018989,2]
[378056251,1754707832465,-151.0,0.00018989,2]
[378056252,1754707832474,-151.0,0.00018989,2]
[378056253,1754707832483,-151.0,0.00018989,2]
[378056254,1754707832492,-151.0,0.00018989,2]
[378056255,1754707832501,-151.0,0.00018989,2]
[378056256,1754707832511,-600.0,0.00018989,2]
[378056257,1754707832520,-151.0,0.00018989,2]
[378056258,1754707832530,-600.0,0.00018989,2]
[378056259,1754707832539,-500.0,0.00018989,2]
[378056260,1754707832548,-151.0,0.00018989,2]
[378056261,1754707832557,-611.74510283,0.00018989,2]
[378056262,1754707832566,-198.53969695,0.00018989,2]
[378056263,1754707832575,-346.26205223,0.00018989,2]
[378056264,1754707832584,-151.0,0.00018989,2]
[378056265,1754707832593,-151.0,0.00018989,2]
[378056266,1754707832601,-151.0,0.00018989,2]
[378056267,1754707832611,-151.0,0.00018989,2]
[378056268,1754707832620,-151.0,0.00018989,2]
[378056269,1754707832629,-151.0,0.00018989,2]
[378056270,1754707832638,-151.0,0.00018989,2]
[378056271,1754707832648,-151.0,0.00018989,2]
[378056272,1754707832657,-500.0,0.00018989,2]
[378056273,1754707832666,-151.0,0.00018989,2]
[378056274,1754707832675,-500.0,0.00018989,2]
[378056275,1754707832684,-151.0,0.00018989,2]
[378056276,1754707832694,-500.0,0.00018989,2]
[378056277,1754707832704,-151.0,0.00018989,2]
[378056278,1754707832715,-151.0,0.00018989,2]
[378056279,1754707832724,-500.0,0.00018989,2]
[378056280,1754707832734,-151.0,0.00018989,2]
[378056282,1754707832743,-500.0,0.00018989,2]
[378056284,1754707832752,-151.0,0.00018989,2]
[378056286,1754707832761,-500.0,0.00018989,2]
[378056288,1754707832771,-151.0,0.00018989,2]
[378056289,1754707832780,-500.0,0.00018989,2]
[378056290,1754707832796,-151.0,0.00018989,2]
[378056291,1754707832806,-97.90495176,0.00018989,2]
[378056292,1754707832836,-536.38174035,0.00018989,2]
[378056293,1754707832846,-151.0,0.00018989,2]
[378056294,1754707832855,-151.0,0.00018989,2]
[378056296,1754707832865,-151.0,0.00018989,2]
[378056297,1754707832875,-151.0,0.00018989,2]
[378056298,1754707832884,-2193.49137695,0.0001899,2]
[378056299,1754707832895,-500.0,0.00018999,2]
[378056300,1754707832906,-500.0,0.00018999,2]
[378056301,1754707832917,-500.0,0.00018999,2]
[378056302,1754707832926,-500.0,0.00018999,2]
[378056303,1754707832935,-500.0,0.00018999,2]
[378056304,1754707832944,-500.0,0.00018999,2]
[378056305,1754707832953,-500.0,0.00018999,2]
[378056306,1754707832963,-500.0,0.00018999,2]
[378056307,1754707832975,-500.0,0.00018999,2]
[378056308,1754707832986,-218758.39489289,0.00019,2]
[378056309,1754707832998,-43942.33846801,0.00019,2]
[378056310,1754707833007,-11018.38034584,0.00019,2]
[378056311,1754707833017,-5058.15224739,0.00019,2]
[378056312,1754707833025,-500.0,0.00019178,2]
[378056313,1754707833035,-206.0987451,0.00019178,2]
[378056314,1754707833044,-203.01848668,0.00019178,2]
[378056315,1754707833053,-150.0,0.00019178,2]
[378056316,1754707833062,-500.0,0.00019178,2]
[378056317,1754707833072,-150.0,0.00019178,2]
[378056318,1754707833082,-500.0,0.00019178,2]
[378056319,1754707833091,-500.0,0.00019178,2]
[378056320,1754707833101,-500.0,0.00019178,2]
[378056321,1754707833110,-154.26704721,0.00019178,2]
[378056322,1754707833119,-500.0,0.00019178,2]
[378056323,1754707833129,-500.0,0.00019178,2]
[378056324,1754707833139,-150.0,0.00019178,2]
[378056325,1754707833148,-500.0,0.00019178,2]
[378056326,1754707833157,-206.26105754,0.00019178,2]
[378056327,1754707833166,-500.0,0.00019178,2]
[378056328,1754707833176,-500.0,0.00019178,2]
[378056329,1754707833185,-150.0,0.00019178,2]
[378056330,1754707833195,-150.0,0.00019178,2]
[378056331,1754707833205,-150.0,0.00019178,2]
[378056332,1754707833215,-150.0,0.00019178,2]
[378056333,1754707833224,-150.0,0.00019178,2]
[378056334,1754707833234,-150.0,0.00019178,2]
[378056335,1754707833244,-152.94487323,0.00019178,2]
[378056336,1754707833253,-150.0,0.00019178,2]
[378056337,1754707833264,-150.0,0.00019178,2]
[378056338,1754707833275,-150.0,0.00019178,2]
[378056339,1754707833285,-150.0,0.00019178,2]
[378056340,1754707833296,-150.0,0.00019178,2]
[378056341,1754707833306,-150.0,0.00019178,2]
[378056342,1754707833316,-150.0,0.00019178,2]
[378056343,1754707833325,-151.0,0.00019178,2]
[378056344,1754707833335,-177.69,0.00019178,2]
[378056345,1754707833345,-1014.97767885,0.000194,2]
[378056346,1754707833355,-208.62,0.00019432,2]
[378056347,1754707833364,-217.98,0.00019439,2]
[378056348,1754707833374,-150.0,0.00019452,2]
[378056349,1754707833383,-500.0,0.00019452,2]
[378056350,1754707833393,-150.0,0.00019452,2]
[378056351,1754707833403,-500.0,0.00019452,2]
[378056352,1754707833412,-500.0,0.00019452,2]
[378056353,1754707833422,-500.0,0.00019452,2]
[378056354,1754707833432,-500.0,0.00019452,2]
[378056355,1754707833443,-500.0,0.00019452,2]
[378056356,1754707833453,-150.0,0.00019452,2]
[378056357,1754707833462,-500.0,0.00019452,2]
[378056358,1754707833472,-500.0,0.00019452,2]
[378056359,1754707833482,-500.0,0.00019452,2]
[378056360,1754707833491,-207.81734801,0.00019452,2]
[378056361,1754707833501,-150.0,0.00019452,2]
[378056362,1754707833510,-150.0,0.00019452,2]
[378056363,1754707833520,-205.37559382,0.00019452,2]
[378056364,1754707833530,-218.00055677,0.00019452,2]
[378056365,1754707833539,-205.31104199,0.00019452,2]
[378056366,1754707833549,-150.0,0.00019452,2]
[378056367,1754707833559,-150.0,0.00019452,2]
[378056368,1754707833569,-150.0,0.00019452,2]
[378056369,1754707833579,-150.0,0.00019452,2]
[378056370,1754707833588,-150.0,0.00019459,2]
[378056371,1754707833598,-3977.54764605,0.00019463,2]
[378056372,1754707833607,-167.09,0.00019515,2]
[378056373,1754707833617,-14282.0,0.00019536,2]
[378056374,1754707833627,-200.0,0.0001955,2]
[378056375,1754707833636,-398.5931802,0.00019552,2]
[378056376,1754707833646,-23900.0,0.00019553,2]
[378056377,1754707833655,-455.12,0.00019563,2]
[378056378,1754707833666,-596.98,0.00019586,2]
[378056379,1754707833676,-202.50187727,0.00019726,2]
[378056380,1754707833687,-500.0,0.00019726,2]
[378056381,1754707833698,-150.96565975,0.00019726,2]
[378056382,1754707833708,-500.0,0.00019726,2]
[378056383,1754707833718,-523.37358555,0.00019726,2]
[378056384,1754707833728,-500.0,0.00019726,2]
[378056385,1754707833738,-500.0,0.00019726,2]
[378056386,1754707833748,-500.0,0.00019726,2]
[378056387,1754707833757,-171.50383955,0.00019726,2]
[378056388,1754707833766,-500.0,0.00019726,2]
[378056389,1754707833777,-467.3141213,0.00019726,2]
[378056390,1754707833790,-500.0,0.00019726,2]
[378056391,1754707833799,-150.0,0.00019726,2]
[378056392,1754707833808,-150.0,0.00019726,2]
[378056393,1754707833818,-177.57724961,0.00019726,2]
[378056394,1754707833827,-210.22810241,0.00019726,2]
[378056395,1754707833838,-150.0,0.00019726,2]
[378056396,1754707833847,-150.0,0.00019726,2]
[378056397,1754707833857,-156.587,0.00019726,2]
[378056398,1754707833867,-1859.00738,0.0001981,2]
[378056399,1754707833878,-200.93554017,0.000199,2]
[378056400,1754707833888,-588.03,0.00019937,2]
[378056401,1754707833898,-514.0,0.0001997,2]
[378056402,1754707833908,-258.02831829,0.00019984,2]
[378056403,1754707833917,-156.02758204,0.00019985,2]
[378056404,1754707833927,-28726.87834676,0.00019985,2]
[378056405,1754707834248,-2935.31552703,0.00019985,2]
[378056406,1754707834264,-452.79881725,0.00019985,2]
[378056407,1754707834277,-1154.4,0.00019985,2]
[378056408,1754707834292,-296.0765777,0.00019985,2]
[378056409,1754707834303,-3045.46552454,0.00019985,2]
[378056417,1754707838173,-6741.29343243,0.00019985,2]
[378056418,1754707838279,-1739.72802309,0.00019985,2]
[378056421,1754707840379,-978.49500007,0.00019985,2]
[378056447,1754708157509,151.09,0.00013699,2]
[378056481,1754708895595,514.0,0.00017462,2]
[378056495,1754709020278,1000.0,0.00017771,2]
[378056496,1754709030001,3809.44,0.00017719,2]
[378056499,1754709031543,-852.44116736,0.00018161,2]
[378056500,1754709031554,-347.55883264,0.00018161,2]
[378056501,1754709031564,-3372.29940422,0.00018162,2]
[378056502,1754709031650,-5782.06059578,0.00018162,2]
[378056503,1754709031660,-167.34,0.00018304,2]
[378056504,1754709031669,-300.0,0.00018374,2]
[378056505,1754709031679,-300.0,0.00018374,2]
[378056506,1754709031688,-300.0,0.00018374,2]
[378056507,1754709031697,-850.0,0.00018375,2]
[378056508,1754709031706,-12028.26839549,0.00018376,2]
[378056509,1754709031807,-28114.61419932,0.00018376,2]
[378056510,1754709031816,-211.6669833,0.00018376,2]
[378056511,1754709031826,-524.92081056,0.00018376,2]
[378056512,1754709031836,-4016.62225751,0.00018376,2]
[378056513,1754709031846,-180.20800521,0.00018376,2]
[378056514,1754709031855,-344.69,0.00018376,2]
[378056515,1754709031865,-543.35,0.00018377,2]
[378056516,1754709031875,-217.27479508,0.00018452,2]
[378056517,1754709031885,-217.27479508,0.00018452,2]
[378056518,1754709031895,-217.27479508,0.00018452,2]
[378056519,1754709031904,-297.77800742,0.00018455,2]
[378056520,1754709031915,-279.01522614,0.00018461,2]
[378056522,1754709031925,-500.0,0.00018461,2]
[378056524,1754709031935,-500.0,0.00018461,2]
[378056525,1754709031944,-500.0,0.00018461,2]
[378056526,1754709031953,-500.0,0.00018461,2]
[378056527,1754709031962,-208.81415807,0.00018461,2]
[378056528,1754709031972,-500.0,0.00018461,2]
[378056530,1754709031981,-500.0,0.00018461,2]
[378056532,1754709031991,-500.0,0.00018461,2]
[378056534,1754709032000,-500.0,0.00018461,2]
[378056536,1754709032010,-500.0,0.00018461,2]
[378056538,1754709032019,-500.0,0.00018461,2]
[378056540,1754709032028,-500.0,0.00018461,2]
[378056542,1754709032037,-500.0,0.00018461,2]
[378056544,1754709032048,-500.0,0.00018461,2]
[378056545,1754709032059,-345.68520575,0.00018461,2]
[378056548,1754709032070,-500.0,0.00018461,2]
[378056550,1754709032079,-500.0,0.00018461,2]
[378056552,1754709032089,-177.64154699,0.00018461,2]
[378056554,1754709032098,-250.0,0.00018462,2]
[378056556,1754709032108,-300.0,0.00018462,2]
[378056558,1754709032117,-1071.73698911,0.00018462,2]
[378056560,1754709032126,-1305.10798071,0.00018462,2]
[378056562,1754709032136,-26736.46813884,0.00018462,2]
[378056564,1754709032148,-2442.89745841,0.00018462,2]
[378056566,1754709032163,-500.28202518,0.00018462,2]
[378056798,1754709037588,-7168.99065,0.00018462,2]
[378056799,1754709037751,-588.0,0.00018462,2]
[378056804,1754709039476,-39488.74728669,0.00018462,2]
[378056805,1754709039488,-9211.39088322,0.00018462,2]
[378056806,1754709039529,-2056852.67587868,0.00018462,2]
[378056807,1754709039636,-283.61900001,0.00018462,2]
[378056808,1754709039796,-12536.24139136,0.00018462,2]
[378056813,1754709042935,-66016.65925665,0.00018462,2]
[378056820,1754709045724,-2176.7804,0.00018462,2]
[378056821,1754709045838,514.0,0.00017462,2]
[378056822,1754709055234,5512.0,0.000166,5]
[378056823,1754709105541,508.0,0.00017462,2]
[378056827,1754709143335,155.66,0.00013699,2]
[378056830,1754709195499,514.0,0.00017462,2]
[378056831,1754709212003,5161.57,0.00017639,2]
[378056832,1754709215289,300.0,0.000175,6]
[378056833,1754709217378,600.0,0.000176,6]
[378056834,1754709219470,900.0,0.000177,6]
[378056835,1754709221565,1200.0,0.000178,6]
[378056838,1754709223699,1500.0,0.000179,6]
[378056840,1754709257649,1232.22,0.00017668,2]
[378056843,1754709261051,23900.0,0.00017668,2]
[378056844,1754709268984,282.56,0.00017665,2]
[378056845,1754709286207,242.82,0.00016712,2]
[378056846,1754709307646,1794.671818,7.945e-05,2]
[378056848,1754709456455,3061.64,0.00017508,2]
[378056850,1754709525409,150.0,0.0001752,2]
[378056851,1754709535483,781.0,0.00017543,2]
[378056853,1754709618823,302.0,0.00021,120]
[378056862,1754709706922,250.0,0.00017442,2]
[378056864,1754709722444,167.35,0.00017442,2]
[378056865,1754709722956,-208.91613073,0.00018125,2]
[378056866,1754709725624,-180.10172624,0.00018129,2]
[378056867,1754709725647,-105.34031103,0.00018158,2]
[378056869,1754709793015,306.0,0.000179,2]
[378056870,1754709798503,166.89,0.00017462,2]
[378056871,1754709811745,2326.67,0.00017462,2]
[378056872,1754709851025,482.22,0.00015068,2]
[378056873,1754709851228,482.22,0.00016636,2]
[378056875,1754709911816,358.26777598,0.000154,2]
[378056876,1754709921402,312.37201919,9e-05,2]
[378056877,1754709945303,172.71,0.0001742,2]
[378056879,1754709967210,1000.0,0.00017397,2]
[378056880,1754709968555,684.38662178,0.00015,2]
[378056881,1754709969098,250.0,0.00015,2]
[378056882,1754709976272,514.0,0.00017298,2]
[378056887,1754710033500,168.13,0.00017913,2]
[378056888,1754710039801,159.68,0.00013699,2]
[378056900,1754710121791,38490.87487319,0.000151,2]
[378056912,1754710173154,616.11,0.00017395,2]
[378056914,1754710187498,1000.0,0.00017415,2]
[378056915,1754710191520,226.04,0.00017412,2]
[378056917,1754710213797,23900.0,0.00017417,2]
[378056930,1754710231666,-355.438701,0.00018007,2]
[378056931,1754710231679,-226.04,0.00018065,2]
[378056932,1754710231688,-180.10172624,0.00018098,2]
[378056933,1754710231698,-4131.38,0.00018162,2]
[378056934,1754710231708,-1200.0,0.00018197,2]
[378056935,1754710231719,-654.0,0.00018198,2]
[378056936,1754710231729,-300.0,0.00018198,2]
[378056937,1754710231743,-300.0,0.00018198,2]
[378056938,1754710231752,-10000.0,0.000182,2]
[378056939,1754710231762,-482.22,0.00018203,2]
[378056940,1754710231773,-850.0,0.00018254,2]
[378056941,1754710231784,-19757.421619,0.00018255,2]
[378056942,1754710231801,-7174.04349228,0.00018255,2]
[378057347,1754710239776,-39598.41114718,0.00018255,2]
[378057348,1754710239786,-447.85968092,0.00018272,2]
[378057349,1754710239795,-1354.752,0.00018298,2]
[378057350,1754710239805,-176.01,0.00018298,2]
[378057351,1754710239814,-2031.25469,0.0001831,2]
[378057352,1754710239824,-1751.77654811,0.0001836,2]
[378057353,1754710239833,-4482.66791331,0.00018362,2]
[378057354,1754710239843,-150.88021224,0.0001837,2]
[378057355,1754710239852,-2292.94519524,0.0001837,2]
[378057356,1754710239861,-498.02270638,0.0001837,2]
[378057357,1754710239871,-3347.18521455,0.0001837,2]
[378057358,1754710239881,-602.34634899,0.0001837,2]
[378057359,1754710239889,-781.0,0.00018421,2]
[378057360,1754710239899,-4482.66791323,0.00018422,2]
[378057361,1754710239908,-2031.25469,0.0001843,2]
[378057362,1754710239918,-2292.94519518,0.00018431,2]
[378057363,1754710239927,-301.00551465,0.00018451,2]
[378057364,1754710239938,-5782.09243081,0.00018451,2]
[378057365,1754710239947,-500.0,0.00018451,2]
[378057366,1754710239957,-151.0,0.00018451,2]
[378057367,1754710239966,-541.34445954,0.00018451,2]
[378057368,1754710239976,-156.94633588,0.00018452,2]
[378057369,1754710239985,-319.21468529,0.00018461,2]
[378057370,1754710239995,-500.0,0.00018461,2]
[378057371,1754710240004,-500.0,0.00018461,2]
[378057372,1754710240013,-500.0,0.00018461,2]
[378057373,1754710240023,-500.0,0.00018461,2]
[378057374,1754710240032,-276.91935286,0.00018461,2]
[378057375,1754710240042,-500.0,0.00018461,2]
[378057376,1754710240051,-500.0,0.00018461,2]
[378057377,1754710240060,-500.0,0.00018461,2]
[378057378,1754710240069,-500.0,0.00018461,2]
[378057379,1754710240079,-491.41918932,0.00018461,2]
[378057380,1754710240088,-500.0,0.00018461,2]
[378057381,1754710240097,-500.0,0.00018461,2]
[378057382,1754710240106,-500.0,0.00018461,2]
[378057383,1754710240117,-354.31079633,0.00018461,2]
[378057384,1754710240127,-678.61240809,0.00018461,2]
[378057385,1754710240137,-258.02831829,0.00018461,2]
[378057386,1754710240146,-683.5626303,0.00018461,2]
[378057387,1754710240155,-21412.62,0.00018462,2]
[378057388,1754710240164,-33190.79909955,0.00018462,2]
[378057389,1754710240174,-652.55399035,0.00018462,2]
[378057390,1754710240185,-70022.41479261,0.00018462,2]
[378057391,1754710240198,-4606380.24283835,0.00018462,2]
[378057392,1754710240208,-161.77905648,0.0001847,2]
[378057393,1754710240217,-500.0,0.00018473,2]
[378057394,1754710240227,-418.84745571,0.00018473,2]
[378057395,1754710240235,-510.26640398,0.00018473,2]
[378057396,1754710240244,-503.10584448,0.00018473,2]
[378057397,1754710240254,-152.99403446,0.00018473,2]
[378057398,1754710240263,-500.0,0.00018473,2]
[378057399,1754710240272,-503.41782632,0.00018473,2]
[378057400,1754710240281,-500.0,0.00018473,2]
[378057401,1754710240290,-500.0,0.00018473,2]
[378057402,1754710240299,-500.0,0.00018473,2]
[378057403,1754710240308,-365.98531029,0.00018473,2]
[378057404,1754710240318,-613.04058274,0.00018473,2]
[378057405,1754710240327,-502.19888233,0.00018473,2]
[378057406,1754710240336,-503.38888171,0.00018473,2]
[378057407,1754710240345,-312.44927554,0.00018473,2]
[378057408,1754710240354,-503.35613335,0.00018473,2]
[378057409,1754710240363,-161.66432477,0.00018473,2]
[378057410,1754710240372,-397.99617915,0.00018473,2]
[378057411,1754710240381,-500.0,0.00018473,2]
[378057412,1754710240391,-500.0,0.00018473,2]
[378057413,1754710240400,-502.06580416,0.00018473,2]
[378057414,1754710240409,-501.24967266,0.00018473,2]
[378057415,1754710240419,-503.03723788,0.00018473,2]
[378057416,1754710240436,-500.0,0.00018473,2]
[378057417,1754710240458,-500.0,0.00018473,2]
[378057418,1754710240468,-4482.66791323,0.00018482,2]
[378057419,1754710240478,-2292.94519518,0.00018492,2]
[378057420,1754710240488,-500.0,0.00018506,2]
[378057421,1754710240497,-4482.66791323,0.00018541,2]
[378057422,1754710240507,-2292.94519518,0.00018553,2]
[378057423,1754710240516,-2031.25469,0.0001856,2]
[378057424,1754710240525,-500.0,0.00018561,2]
[378057425,1754710240535,-163.88,0.00018565,2]
[378057426,1754710240545,-4482.66791323,0.00018601,2]
[378057427,1754710240554,-200.09,0.00018602,2]
[378057428,1754710240563,-167.45,0.00018607,2]